bitfinex/quotes_BTCUSD_20250525
["timestamp","ask_amount","ask_price","bid_price","bid_amount"]
[1748131910700,0.79200765,107770.0,107760.0,0.58012295]
[1748131913196,0.79200765,107770.0,107760.0,0.62832295]
[1748131914763,0.79200765,107770.0,107760.0,0.32592]
[1748131914969,0.79200765,107770.0,107760.0,0.62832295]
[1748131917600,0.79200765,107770.0,107760.0,1.54756295]
[1748131918759,0.70246209,107770.0,107760.0,1.6517109]
[1748131918942,0.70246209,107770.0,107760.0,1.2879109]
[1748131919776,0.70246209,107770.0,107760.0,1.2876734]
[1748131919977,0.70246209,107770.0,107760.0,1.2965381]
[1748131921435,0.70246209,107770.0,107760.0,0.9942539]
[1748131922850,0.70246209,107770.0,107760.0,0.4142497]
[1748131923068,0.70246209,107770.0,107760.0,0.3347847]
[1748131923487,0.70246209,107770.0,107760.0,0.3970647]
[1748131924140,0.79200765,107770.0,107760.0,0.0328647]
[1748131924356,0.81470765,107770.0,107760.0,0.0088647]
[1748131924560,0.81470765,107770.0,107760.0,0.2865847]
[1748131924773,0.81470765,107770.0,107760.0,0.27772]
[1748131925917,0.79200765,107770.0,107760.0,0.27772]
[1748131926188,0.81470765,107770.0,107760.0,0.27772]
[1748131926795,0.81470765,107770.0,107760.0,0.61772]
[1748131927497,0.81470765,107770.0,107760.0,1.53692]
[1748131927741,0.79200765,107770.0,107760.0,1.53692]
[1748131928167,0.79200765,107770.0,107760.0,1.8877042]
[1748131928400,0.79200765,107770.0,107760.0,0.6907842]
[1748131929640,0.79200765,107770.0,107760.0,1.3322642]
[1748131929877,0.70246209,107770.0,107760.0,0.9685042]
[1748131930108,0.70246209,107770.0,107760.0,2.5410432]
[1748131930323,0.70246209,107770.0,107760.0,2.8340122]
[1748131930538,0.70246209,107770.0,107760.0,2.4381152]
[1748131930975,0.70246209,107770.0,107760.0,2.7403994]
[1748131932230,0.70246209,107770.0,107760.0,2.74926111]
[1748131935073,0.006,107770.0,107760.0,2.83880667]
[1748131935286,0.006,107770.0,107760.0,2.85334752]
[1748131935923,0.003,107770.0,107760.0,2.85334752]
[1748131936348,0.004,107770.0,107760.0,2.86812894]
[1748131936711,0.003,107770.0,107760.0,2.86812894]
[1748131937151,0.003,107770.0,107760.0,2.86912894]
[1748131937526,0.69646209,107800.0,107780.0,0.0461]
[1748131937695,0.69646209,107800.0,107790.0,1.9882432]
[1748131938730,0.6975557,107800.0,107790.0,1.9882432]
[1748131938875,0.7005557,107800.0,107790.0,1.9882432]
[1748131939278,0.6995557,107800.0,107790.0,1.9882432]
[1748131939541,0.7025557,107800.0,107790.0,1.6254032]
[1748131939937,0.7025557,107800.0,107790.0,1.7354032]
[1748131940149,0.7025557,107800.0,107790.0,1.74663137]
[1748131943859,0.7025557,107800.0,107790.0,1.72702037]
[1748131947585,0.7025557,107800.0,107790.0,2.64510037]
[1748131948697,0.7025557,107800.0,107790.0,2.08982037]
[1748131950668,0.7025557,107800.0,107790.0,1.72702037]
[1748131954961,0.7025557,107800.0,107790.0,1.54728337]
[1748131955203,0.7025557,107800.0,107790.0,1.15408837]
[1748131955418,0.7025557,107800.0,107790.0,0.73886817]
[1748131955874,0.7025557,107800.0,107790.0,1.04115237]
[1748131957597,0.7025557,107800.0,107790.0,1.95923237]
[1748131959234,0.7025557,107800.0,107790.0,1.04115237]
[1748131962633,0.7025557,107800.0,107790.0,1.06485237]
[1748131963431,0.7025557,107800.0,107790.0,0.78721237]
[1748131963635,0.7025557,107800.0,107790.0,1.06485237]
[1748131964276,0.7025557,107800.0,107790.0,1.07369562]
[1748131964515,0.7025557,107800.0,107790.0,1.09749562]
[1748131965324,0.7025557,107800.0,107790.0,1.08626745]
[1748131966715,0.7025557,107800.0,107790.0,1.50994845]
[1748131966942,0.7025557,107800.0,107790.0,1.49098545]
[1748131967672,0.00609361,107800.0,107790.0,2.24481521]
[1748131967900,0.00609361,107800.0,107790.0,1.49098545]
[1748131968104,0.00609361,107800.0,107790.0,1.02200745]
[1748131968282,0.00609361,107800.0,107790.0,1.29964745]
[1748131968511,0.00309361,107800.0,107790.0,1.29964745]
[1748131968720,9.361e-05,107800.0,107790.0,1.29964745]
[1748131969609,0.00109361,107800.0,107790.0,0.11884325]
[1748131969834,0.00109361,107800.0,107790.0,0.39648325]
[1748131970037,0.00109361,107800.0,107790.0,0.38764]
[1748131970567,0.00209361,107800.0,107790.0,0.38764]
[1748131970773,0.00209361,107800.0,107790.0,0.11]
[1748131970917,0.00209361,107800.0,107790.0,0.38764]
[1748131971128,0.00209361,107800.0,107790.0,0.8597342]
[1748131971960,0.00209361,107800.0,107790.0,0.5820942]
[1748131972165,0.00209361,107800.0,107790.0,0.8597342]
[1748131973206,0.00209361,107800.0,107790.0,1.1997342]
[1748131974675,0.00209361,107800.0,107790.0,0.9916104]
[1748131974876,0.00209361,107800.0,107790.0,0.9199242]
[1748131975040,0.00209361,107800.0,107790.0,1.1834572]
[1748131975239,0.00209361,107800.0,107790.0,1.1297342]
[1748131976139,0.00209361,107800.0,107790.0,1.1087342]
[1748131976346,0.00209361,107800.0,107790.0,0.52881]
[1748131976718,0.00209361,107800.0,107790.0,0.9199242]
[1748131977513,0.00209361,107800.0,107790.0,1.8372042]
[1748131978019,0.00209361,107800.0,107790.0,1.53492]
[1748131978720,0.00209361,107800.0,107790.0,0.34]
[1748131978924,0.02649361,107800.0,107790.0,0.34]
[1748131979129,0.02649361,107800.0,107790.0,0.61764]
[1748131979130,0.05079361,107800.0,107790.0,0.61764]
[1748131979342,0.00209361,107800.0,107790.0,0.61764]
[1748131981099,0.00209361,107800.0,107790.0,0.733663]
[1748131981300,0.00209361,107800.0,107790.0,0.780863]
[1748131981544,0.00209361,107800.0,107790.0,1.0831472]
[1748131982639,0.00209361,107800.0,107790.0,1.09199482]
[1748131986383,0.00209361,107800.0,107790.0,1.20199482]
[1748131987592,0.00209361,107800.0,107790.0,2.11927482]
[1748131989991,0.00209361,107800.0,107790.0,1.56399482]
[1748131991192,0.00209361,107800.0,107790.0,0.92435482]
[1748131991416,0.00209361,107800.0,107790.0,1.20199482]
[1748131992194,0.00209361,107800.0,107790.0,1.15479482]
[1748131992611,0.00209361,107800.0,107790.0,1.20189482]
[1748131993318,0.00209361,107800.0,107790.0,0.89961062]
[1748131993525,0.00209361,107800.0,107790.0,1.20189482]
[1748131996370,0.00209361,107800.0,107790.0,1.21267533]
[1748131997553,0.00209361,107800.0,107790.0,1.76787533]
[1748131997757,0.00209361,107800.0,107790.0,2.12919533]
[1748131999263,0.00209361,107800.0,107790.0,1.21267533]
[1748132007077,0.04959361,107800.0,107790.0,0.58565113]
[1748132007285,0.21306607,107800.0,107790.0,0.11884762]
[1748132007488,0.21306607,107800.0,107790.0,0.75780762]
[1748132007894,0.21306607,107800.0,107790.0,0.11884762]
[1748132008133,0.21306607,107800.0,107790.0,0.39648762]
[1748132008543,0.21306607,107800.0,107790.0,0.38764]
[1748132009376,0.13913917,107800.0,107790.0,0.38764]
[1748132014732,0.13913917,107800.0,107790.0,0.11]
[1748132014961,0.13913917,107800.0,107790.0,0.38764]
[1748132016406,0.13913917,107800.0,107770.0,0.50812298]
[1748132016599,0.11264556,107790.0,107770.0,0.3499842]
[1748132017024,0.13524556,107790.0,107770.0,0.3499842]
[1748132017484,0.11264556,107790.0,107770.0,0.3499842]
[1748132017656,0.11264556,107790.0,107780.0,1.19436]
[1748132018086,0.11264556,107790.0,107780.0,0.01042562]
[1748132018302,0.11264556,107790.0,107780.0,0.64946562]
[1748132018516,0.11264556,107790.0,107780.0,0.27768]
[1748132018932,0.11264556,107790.0,107780.0,0.27868]
[1748132019339,0.78624556,107790.0,107780.0,0.27868]
[1748132022766,0.78624556,107790.0,107780.0,0.28909709]
[1748132022969,0.78624556,107790.0,107780.0,0.01141709]
[1748132023163,0.78624556,107790.0,107780.0,0.28909709]
[1748132025738,0.78624556,107790.0,107780.0,0.28809709]
[1748132026114,0.78724556,107790.0,107780.0,0.01041709]
[1748132026326,0.83274556,107790.0,107770.0,0.13402048]
[1748132026937,0.83274556,107790.0,107770.0,0.14473389]
[1748132027333,0.83374556,107790.0,107770.0,0.14473389]
[1748132027711,0.83374556,107790.0,107780.0,1.19368]
[1748132027924,0.83174556,107790.0,107780.0,0.63836]
[1748132028224,0.83174556,107790.0,107780.0,0.72836]
[1748132029029,0.83274556,107790.0,107780.0,0.72836]
[1748132029347,0.83374556,107790.0,107780.0,0.72836]
[1748132029838,0.83374556,107790.0,107780.0,0.36768]
[1748132031541,0.81084556,107790.0,107780.0,0.36768]
[1748132034993,0.81084556,107790.0,107780.0,0.09]
[1748132035223,0.83374556,107790.0,107780.0,0.36768]
[1748132035760,1.29948615,107790.0,107780.0,0.09]
[1748132035992,1.61691136,107790.0,107780.0,0.36768]
[1748132036222,1.56291136,107790.0,107780.0,0.34528]
[1748132036435,0.065,107780.0,107740.0,0.01104907]
[1748132036646,0.32619218,107750.0,107740.0,0.01104907]
[1748132036865,0.71802992,107750.0,107740.0,0.01104907]
[1748132037075,0.0739,107740.0,107700.0,0.0229]
[1748132037308,0.39183774,107730.0,107700.0,0.0472]
[1748132037516,0.30229218,107720.0,107710.0,0.76052]
[1748132037726,0.08954556,107720.0,107710.0,1.0382]
[1748132037937,0.39230172,107720.0,107710.0,1.03829366]
[1748132038353,0.08954556,107720.0,107710.0,0.27777366]
[1748132039168,0.09054556,107720.0,107710.0,0.27777366]
[1748132040121,0.09154556,107720.0,107710.0,0.27777366]
[1748132041261,0.09154556,107720.0,107710.0,0.27785366]
[1748132043654,0.09154556,107720.0,107710.0,0.60220982]
[1748132043863,0.09154556,107720.0,107710.0,0.62450982]
[1748132044075,0.09154556,107720.0,107710.0,0.32175366]
[1748132044852,0.002,107720.0,107710.0,0.32175366]
[1748132047450,0.002,107720.0,107710.0,1.23819366]
[1748132048362,0.002,107720.0,107710.0,0.40483366]
[1748132048527,0.09154556,107720.0,107710.0,0.63873366]
[1748132048743,0.09154556,107720.0,107710.0,0.27789366]
[1748132052380,0.09054556,107720.0,107710.0,0.27789366]
[1748132052737,0.09454556,107720.0,107710.0,0.27789366]
[1748132053741,0.09354556,107720.0,107710.0,0.27789366]
[1748132053932,0.09654556,107720.0,107710.0,0.27889366]
[1748132057598,0.09654556,107720.0,107710.0,1.19493366]
[1748132058554,0.09654556,107720.0,107710.0,1.21733366]
[1748132061242,0.09654556,107720.0,107710.0,0.66161366]
[1748132062392,0.09654556,107720.0,107710.0,0.30129366]
[1748132067549,0.09654556,107720.0,107710.0,1.21737366]
[1748132069480,0.09654556,107720.0,107710.0,1.23907366]
[1748132070564,0.09654556,107720.0,107710.0,0.32299366]
[1748132071684,0.007,107720.0,107710.0,0.32299366]
[1748132072419,0.007,107720.0,107710.0,1.30456666]
[1748132073249,0.007,107720.0,107710.0,1.27019266]
[1748132073951,0.007,107720.0,107710.0,0.99239266]
[1748132074178,0.007,107720.0,107710.0,1.27027266]
[1748132074945,0.007,107720.0,107710.0,0.60445166]
[1748132075171,0.007,107720.0,107710.0,0.51214166]
[1748132075950,0.007,107720.0,107710.0,0.42751666]
[1748132077480,0.007,107720.0,107710.0,1.34359666]
[1748132078057,0.007,107720.0,107710.0,0.78787666]
[1748132080229,0.007,107720.0,107710.0,0.42751666]
[1748132087519,0.007,107720.0,107710.0,1.34315666]
[1748132088800,0.007,107720.0,107690.0,0.01884642]
[1748132089009,0.00705038,107720.0,107680.0,0.01104907]
[1748132089357,0.6967,107710.0,107690.0,4.46452]
[1748132089498,0.6967,107710.0,107690.0,4.418714]
[1748132089923,0.6967,107710.0,107700.0,0.27788]
[1748132090127,0.6967,107710.0,107700.0,1.589895]
[1748132091774,0.6987,107710.0,107700.0,1.590895]
[1748132091992,0.6987,107710.0,107700.0,1.635995]
[1748132091993,0.7007,107710.0,107700.0,1.635995]
[1748132092196,0.7007,107710.0,107700.0,1.335757]
[1748132095273,0.7007,107710.0,107700.0,1.385757]
[1748132097062,0.7007,107710.0,107700.0,1.107877]
[1748132097249,0.7007,107710.0,107700.0,0.654756]
[1748132097464,0.7007,107710.0,107700.0,0.810356]
[1748132097630,0.7007,107710.0,107700.0,1.014676]
[1748132097827,0.7007,107710.0,107700.0,0.376876]
[1748132098034,0.7221,107710.0,107700.0,0.470336]
[1748132099406,0.7007,107710.0,107700.0,0.470336]
[1748132103475,0.7221,107710.0,107700.0,0.470336]
[1748132107400,0.7007,107710.0,107700.0,0.810336]
[1748132107612,0.7007,107710.0,107700.0,1.725976]
[1748132107764,0.7007,107710.0,107700.0,1.55699189]
[1748132107963,0.7007,107710.0,107700.0,1.53352]
[1748132108175,0.7007,107710.0,107700.0,0.930221]
[1748132108377,0.7221,107710.0,107700.0,0.812915]
[1748132108584,0.83334556,107710.0,107690.0,0.01877534]
[1748132108761,0.78624556,107700.0,107690.0,0.01877534]
[1748132108967,0.82934556,107700.0,107690.0,0.29665534]
[1748132109160,0.82934556,107700.0,107690.0,0.01877534]
[1748132109494,0.82934556,107700.0,107690.0,0.29665534]
[1748132110206,0.82934556,107700.0,107690.0,0.01877534]
[1748132110422,0.82934556,107700.0,107690.0,0.29665534]
[1748132111111,0.82934556,107700.0,107690.0,0.29765534]
[1748132111112,0.83034556,107700.0,107690.0,0.29765534]
[1748132111319,0.83234556,107700.0,107690.0,0.29765534]
[1748132111464,0.82934556,107700.0,107690.0,0.29665534]
[1748132111867,0.83434556,107700.0,107690.0,0.29765534]
[1748132112825,0.83434556,107700.0,107690.0,0.01977534]
[1748132113033,0.83434556,107700.0,107690.0,0.29769534]
[1748132115433,0.83434556,107700.0,107690.0,0.01977534]
[1748132115434,0.13764556,107700.0,107690.0,0.01977534]
[1748132115639,0.13764556,107700.0,107690.0,0.27892]
[1748132115640,0.52891637,107700.0,107690.0,0.27892]
[1748132116102,0.22611331,107700.0,107690.0,0.27892]
[1748132116739,0.22611331,107700.0,107690.0,0.001]
[1748132117051,0.22611331,107700.0,107690.0,0.27892]
[1748132117252,0.52891637,107700.0,107690.0,0.27892]
[1748132117462,0.52891637,107700.0,107690.0,1.0386]
[1748132118120,0.52591637,107700.0,107690.0,1.0376]
[1748132118326,0.52391637,107700.0,107690.0,1.0376]
[1748132118497,0.52891637,107700.0,107690.0,1.0386]
[1748132118726,0.53291637,107700.0,107690.0,1.0386]
[1748132119705,0.53291637,107700.0,107690.0,0.6384]
[1748132119912,0.45898947,107700.0,107690.0,0.6384]
[1748132120545,0.15618641,107700.0,107690.0,0.6384]
[1748132121659,0.15618641,107700.0,107690.0,0.27892]
[1748132123111,0.14164556,107700.0,107690.0,0.27892]
[1748132123294,0.11994556,107700.0,107690.0,0.27892]
[1748132127548,0.11994556,107700.0,107690.0,1.03864]
[1748132128576,0.11994556,107700.0,107690.0,0.6384]
[1748132132024,0.11994556,107700.0,107690.0,0.27892]
[1748132133127,0.09854556,107700.0,107690.0,0.27892]
[1748132133484,0.09854556,107700.0,107690.0,0.27896]
[1748132135193,0.12084556,107700.0,107690.0,0.27896]
[1748132136000,0.12084556,107700.0,107690.0,0.001]
[1748132136241,0.12084556,107700.0,107690.0,0.27896]
[1748132137604,0.12084556,107700.0,107690.0,1.03868]
[1748132140081,0.12084556,107700.0,107640.0,0.35104907]
[1748132140295,0.12084556,107700.0,107650.0,4.44964556]
[1748132140296,0.14154556,107700.0,107650.0,4.44964556]
[1748132140521,0.21547246,107700.0,107660.0,0.638118]
[1748132140692,0.0436,107690.0,107640.0,0.01104907]
[1748132140924,0.08954556,107680.0,107650.0,0.897093]
[1748132141093,0.08524556,107680.0,107650.0,0.897093]
[1748132141297,0.08524556,107680.0,107660.0,0.27796]
[1748132142241,0.08524556,107680.0,107660.0,0.27846477]
[1748132142457,0.08624556,107680.0,107660.0,0.27946477]
[1748132143172,0.08624556,107680.0,107660.0,0.32276477]
[1748132144158,0.08624556,107680.0,107660.0,0.32376477]
[1748132147509,0.08624556,107680.0,107670.0,0.91488]
[1748132148744,0.08524556,107680.0,107670.0,0.359]
[1748132149094,0.08624556,107680.0,107670.0,0.359]
[1748132149308,0.08824556,107680.0,107670.0,0.359]
[1748132150733,0.08824556,107680.0,107660.0,0.32176477]
[1748132151238,0.08824556,107680.0,107670.0,0.0219]
[1748132151870,0.08724556,107680.0,107670.0,0.0219]
[1748132152146,0.08524556,107680.0,107670.0,0.0219]
[1748132152498,0.08624556,107680.0,107670.0,0.0219]
[1748132152895,0.08724556,107680.0,107670.0,0.0219]
[1748132153124,0.08924556,107680.0,107670.0,0.0219]
[1748132155424,0.08924556,107680.0,107670.0,0.29986]
[1748132157566,0.08924556,107680.0,107670.0,1.21478]
[1748132159811,0.08924556,107680.0,107670.0,0.63986]
[1748132161007,0.08924556,107680.0,107670.0,0.61796]
[1748132161848,0.08924556,107680.0,107670.0,0.34]
[1748132162056,0.08924556,107680.0,107670.0,0.61796]
[1748132167035,0.08924556,107680.0,107670.0,0.63976]
[1748132167607,0.08924556,107680.0,107670.0,1.55468]
[1748132167862,0.08924556,107680.0,107670.0,0.99876]
[1748132169968,0.08924556,107680.0,107670.0,0.63976]
[1748132170879,0.08924556,107680.0,107670.0,0.34]
[1748132171010,0.08924556,107680.0,107670.0,0.61796]
[1748132172683,0.08924556,107680.0,107670.0,0.928233]
[1748132174458,0.004,107680.0,107670.0,0.928233]
[1748132174861,0.004,107680.0,107670.0,0.928273]
[1748132177660,0.004,107680.0,107670.0,1.842553]
[1748132178015,0.004,107680.0,107670.0,1.206193]
[1748132178215,0.004,107680.0,107670.0,0.946673]
[1748132178420,0.004,107680.0,107670.0,0.588273]
[1748132182416,0.004,107680.0,107670.0,0.310313]
[1748132182596,0.004,107680.0,107670.0,0.588273]
[1748132183546,0.004,107680.0,107670.0,0.928273]
[1748132184152,0.004,107680.0,107670.0,0.906573]
[1748132185432,0.004,107680.0,107670.0,0.929473]
[1748132186679,0.004,107680.0,107670.0,0.906573]
[1748132187498,0.004,107680.0,107670.0,1.820853]
[1748132187676,0.004,107680.0,107670.0,1.61235378]
[1748132187884,0.004,107680.0,107670.0,2.710979]
[1748132188051,0.004,107680.0,107670.0,2.356725]
[1748132190542,0.004,107680.0,107670.0,1.800845]
[1748132191249,0.004,107680.0,107670.0,1.787215]
[1748132192609,0.004,107680.0,107670.0,1.428815]
[1748132195298,0.004,107680.0,107670.0,1.150855]
[1748132195538,0.004,107680.0,107670.0,1.428815]
[1748132195749,0.004,107680.0,107670.0,0.34004]
[1748132195954,0.0257,107680.0,107670.0,0.628]
[1748132196071,0.0257,107680.0,107670.0,0.73681]
[1748132196278,0.0257,107680.0,107670.0,0.628]
[1748132196712,0.0257,107680.0,107670.0,0.73279]
[1748132197546,0.0257,107680.0,107670.0,1.64707]
[1748132199657,0.0257,107680.0,107670.0,0.73279]
[1748132200957,0.0473,107680.0,107670.0,0.73279]
[1748132201377,0.0473,107680.0,107670.0,0.35004]
[1748132201517,0.0473,107680.0,107670.0,0.628]
[1748132202497,0.0257,107680.0,107670.0,0.628]
[1748132207530,0.0257,107680.0,107670.0,1.54168]
[1748132209788,0.0257,107680.0,107670.0,0.628]
[1748132212222,0.0257,107680.0,107670.0,0.35004]
[1748132212435,0.0483,107680.0,107670.0,0.628]
[1748132214413,0.0257,107680.0,107670.0,0.628]
[1748132217671,0.0257,107680.0,107670.0,1.54168]
[1748132219755,0.0257,107680.0,107670.0,0.628]
[1748132220329,0.0472,107680.0,107670.0,0.628]
[1748132226877,0.0472,107680.0,107670.0,0.46656883]
[1748132227173,0.0472,107680.0,107670.0,0.28796]
[1748132227492,0.0472,107680.0,107670.0,1.20164]
[1748132229169,0.0472,107680.0,107670.0,0.64576]
[1748132229737,0.0472,107680.0,107670.0,0.01]
[1748132229933,0.0472,107680.0,107670.0,0.28796]
[1748132234218,0.0257,107680.0,107670.0,0.28796]
[1748132237493,0.0257,107680.0,107670.0,1.20108]
[1748132237903,0.0257,107680.0,107670.0,1.54108]
[1748132239799,0.0257,107680.0,107670.0,0.9852]
[1748132241777,0.0257,107680.0,107670.0,0.62796]
[1748132244142,0.004,107680.0,107670.0,0.62796]
[1748132244436,0.0259,107680.0,107670.0,0.62796]
[1748132245914,0.004,107680.0,107670.0,0.62796]
[1748132246314,0.0259,107680.0,107670.0,0.62796]
[1748132247584,0.0259,107680.0,107670.0,1.54108]
[1748132249618,0.0259,107680.0,107670.0,0.9852]
[1748132250868,0.0259,107680.0,107670.0,0.35]
[1748132251075,0.0464,107680.0,107670.0,0.35]
[1748132251279,0.0464,107680.0,107670.0,0.62796]
[1748132254371,0.0464,107680.0,107670.0,0.35]
[1748132254613,0.0464,107680.0,107670.0,0.62796]
[1748132255356,0.83264556,107680.0,107670.0,0.01]
[1748132255570,0.90657246,107680.0,107670.0,0.28796]
[1748132255775,0.92111331,107680.0,107670.0,0.28796]
[1748132256660,0.92111331,107680.0,107670.0,0.01]
[1748132256899,0.92111331,107680.0,107670.0,0.28796]
[1748132257530,0.92111331,107680.0,107670.0,1.20108]
[1748132260107,0.22441331,107680.0,107670.0,1.20108]
[1748132260833,0.22441331,107680.0,107670.0,0.28796]
[1748132262797,0.52728587,107680.0,107670.0,0.01]
[1748132262999,0.52728587,107680.0,107670.0,0.28796]
[1748132263544,0.52728587,107680.0,107670.0,0.29796]
[1748132265027,0.52728587,107680.0,107670.0,0.298]
[1748132266618,0.53228587,107680.0,107670.0,0.02]
[1748132266816,0.53228587,107680.0,107670.0,0.298]
[1748132267171,0.53228587,107680.0,107670.0,0.02]
[1748132267374,0.53228587,107680.0,107670.0,0.298]
[1748132267528,0.53228587,107680.0,107670.0,1.05492]
[1748132267884,0.83515843,107680.0,107670.0,0.77692]
[1748132268077,0.83515843,107680.0,107670.0,1.05492]
[1748132268486,0.83515843,107680.0,107670.0,0.65464]
[1748132269228,0.15148641,107680.0,107670.0,0.65464]
[1748132269461,0.76423153,107680.0,107670.0,0.65464]
[1748132270407,0.77788444,107680.0,107670.0,0.65464]
[1748132272348,0.77788444,107680.0,107670.0,0.298]
[1748132272957,0.81633904,107680.0,107670.0,0.298]
[1748132273508,0.87190904,107680.0,107670.0,0.298]
[1748132273712,0.81633904,107680.0,107670.0,0.298]
[1748132274315,0.81633904,107680.0,107670.0,0.29804]
[1748132277321,0.84416704,107680.0,107670.0,0.29804]
[1748132277521,0.84416704,107680.0,107670.0,1.05508]
[1748132280254,0.84416704,107680.0,107670.0,0.65472]
[1748132284242,0.84416704,107680.0,107670.0,0.29804]
[1748132285214,0.23842192,107680.0,107670.0,0.29804]
[1748132285422,0.84416704,107680.0,107670.0,0.29804]
[1748132286191,0.85891288,107680.0,107670.0,0.29804]
[1748132287700,0.85891288,107680.0,107670.0,1.05512]
[1748132288189,0.83108488,107680.0,107670.0,1.05512]
[1748132290175,0.83108488,107680.0,107670.0,0.65476]
[1748132290872,0.83108488,107680.0,107670.0,0.02]
[1748132291076,0.83108488,107680.0,107670.0,0.29804]
[1748132292190,0.35454085,107670.0,107650.0,0.042]
[1748132292368,0.42954556,107660.0,107650.0,0.042]
[1748132293491,0.08954556,107660.0,107650.0,0.32018064]
[1748132293839,0.09054556,107660.0,107650.0,0.32018064]
[1748132294319,0.43054556,107660.0,107610.0,0.01379504]
[1748132294432,0.6967,107650.0,107620.0,4.67606]
[1748132294684,0.78624556,107650.0,107620.0,4.67606]
[1748132295134,0.78624556,107650.0,107620.0,4.70835538]
[1748132295382,0.78624556,107650.0,107630.0,1.136545]
[1748132295545,0.78624556,107650.0,107630.0,0.27804]
[1748132296371,0.78724556,107650.0,107630.0,0.27804]
[1748132297083,0.78724556,107650.0,107630.0,0.28104]
[1748132297317,0.78724556,107650.0,107640.0,0.0406]
[1748132297521,0.78724556,107650.0,107640.0,0.95336]
[1748132297670,0.78624556,107650.0,107640.0,0.39732]
[1748132297881,0.78724556,107650.0,107640.0,0.67536]
[1748132298406,0.78624556,107650.0,107640.0,0.67536]
[1748132298583,0.78724556,107650.0,107640.0,0.67636]
[1748132299234,0.78724556,107650.0,107640.0,0.0214]
[1748132299444,0.78724556,107650.0,107640.0,0.27904]
[1748132301041,0.78724556,107650.0,107640.0,0.001]
[1748132301236,0.78724556,107650.0,107640.0,0.27904]
[1748132301796,0.78714876,107650.0,107640.0,0.27904]
[1748132302994,0.78714876,107650.0,107640.0,0.001]
[1748132303192,0.78714876,107650.0,107640.0,0.29944]
[1748132305521,0.78714876,107650.0,107640.0,0.31964]
[1748132306660,0.78714876,107650.0,107640.0,0.29944]
[1748132307506,0.78714876,107650.0,107640.0,0.65552]
[1748132308075,0.78714876,107650.0,107640.0,0.29944]
[1748132308300,0.6976032,107650.0,107640.0,0.31914]
[1748132313375,0.6976032,107650.0,107640.0,0.29944]
[1748132313577,0.6976032,107650.0,107610.0,0.01104907]
[1748132313780,0.80714876,107650.0,107620.0,4.67838231]
[1748132313913,0.80714876,107650.0,107630.0,0.738473]
[1748132314116,0.80714876,107650.0,107640.0,0.00232231]
[1748132314345,0.80714876,107650.0,107630.0,0.00232231]
[1748132314514,0.80714876,107650.0,107620.0,4.67838231]
[1748132314753,0.80714876,107650.0,107630.0,1.016513]
[1748132314917,0.80714876,107650.0,107630.0,0.27804]
[1748132315119,0.80714876,107650.0,107640.0,0.00232231]
[1748132316350,0.80614876,107650.0,107640.0,0.00232231]
[1748132316880,0.80714876,107650.0,107640.0,0.00232231]
[1748132317387,0.80814876,107650.0,107640.0,0.001]
[1748132317587,0.80814876,107650.0,107640.0,0.35708]
[1748132318213,0.82784876,107650.0,107640.0,0.35708]
[1748132321287,0.82784876,107650.0,107640.0,0.001]
[1748132324542,0.82784876,107650.0,107640.0,0.27904]
[1748132327554,0.82784876,107650.0,107640.0,1.19116]
[1748132328473,0.82784876,107650.0,107640.0,0.63512]
[1748132330498,0.82784876,107650.0,107640.0,0.27904]
[1748132335973,0.82784876,107650.0,107640.0,0.001]
[1748132336142,0.82784876,107650.0,107640.0,0.27904]
[1748132337554,0.82784876,107650.0,107640.0,1.19052]
[1748132339074,0.82784876,107650.0,107640.0,0.001]
[1748132339205,0.82784876,107650.0,107640.0,0.27904]
[1748132347642,0.82784876,107650.0,107640.0,1.19052]
[1748132349484,0.82784876,107650.0,107640.0,0.63448]
[1748132351417,0.82784876,107650.0,107640.0,0.27904]
[1748132353546,0.82784876,107650.0,107640.0,0.001]
[1748132353772,0.82784876,107650.0,107640.0,0.27904]
[1748132355103,0.82784876,107650.0,107640.0,0.001]
[1748132355308,0.43411812,107650.0,107640.0,0.27904]
[1748132355945,0.43411812,107650.0,107640.0,0.28772717]
[1748132356153,0.43211812,107650.0,107640.0,0.28672717]
[1748132356399,0.44765897,107650.0,107640.0,0.00868717]
[1748132356606,0.44765897,107650.0,107640.0,0.28672717]
[1748132357665,0.44765897,107650.0,107640.0,1.03384]
[1748132357834,0.44965897,107650.0,107640.0,1.03384]
[1748132358059,0.44865897,107650.0,107640.0,1.03384]
[1748132359055,0.45165897,107650.0,107640.0,1.03384]
[1748132359251,0.44665897,107650.0,107640.0,1.03384]
[1748132359660,0.44965897,107650.0,107640.0,1.03384]
[1748132360063,0.45365897,107650.0,107640.0,1.03384]
[1748132360366,0.45365897,107650.0,107640.0,1.03388]
[1748132360594,0.45365897,107650.0,107600.0,0.0206]
[1748132360595,0.0421,107620.0,107600.0,0.0206]
[1748132360872,0.0421,107620.0,107610.0,4.95646284]
[1748132361085,0.0421,107620.0,107610.0,4.95414]
[1748132361285,0.0421,107620.0,107610.0,4.67606]
[1748132361505,0.0421,107620.0,107610.0,4.95414]
[1748132361906,0.0431,107620.0,107610.0,4.95414]
[1748132362400,0.0441,107620.0,107610.0,4.95414]
[1748132362858,0.0441,107620.0,107610.0,4.67606]
[1748132363067,0.11284556,107620.0,107600.0,0.01015149]
[1748132363276,0.0426,107610.0,107600.0,0.01015149]
[1748132363448,0.0416,107610.0,107600.0,0.28823149]
[1748132363792,0.0416,107610.0,107600.0,0.01015149]
[1748132363998,0.13114556,107610.0,107600.0,0.28823149]
[1748132364793,0.13214556,107610.0,107600.0,0.28823149]
[1748132365378,0.13314556,107610.0,107600.0,0.28823149]
[1748132365918,0.13314556,107610.0,107600.0,0.29123149]
[1748132366326,0.13314556,107610.0,107600.0,0.28823149]
[1748132366842,0.13314556,107610.0,107600.0,0.28923149]
[1748132367249,0.13314556,107610.0,107600.0,0.40591649]
[1748132367431,0.13314556,107610.0,107600.0,1.31695649]
[1748132368062,0.13314556,107610.0,107600.0,0.76079649]
[1748132368900,0.13314556,107610.0,107600.0,0.12783649]
[1748132369179,0.13314556,107610.0,107600.0,0.40591649]
[1748132371918,0.0228,107610.0,107600.0,0.40591649]
[1748132372140,0.002,107610.0,107600.0,0.42291649]
[1748132372368,0.002,107610.0,107600.0,0.51246205]
[1748132372574,0.0435,107650.0,107620.0,0.017]
[1748132372806,0.0435,107650.0,107630.0,4.33653131]